[Event "NJSK 2024 AmBm"]
[Site "Groningen, Netherlands"]
[Date "2024.04.28"]
[Round "2.8"]
[White "Ganeshram, Nirupa"]
[Black "Rutten, Lenthe"]
[Result "1-0"]
[TimeControl "90min/40moves + 30min + 30sec/move"]
[WhiteElo "1696"]
[BlackElo "1526"]

1. e4 {[%clk 01:30:58]} c5 {[%clk 01:30:55]} {[%emt 00:00:06]} 2. Nf3 {[%clk
01:31:22]} {[%emt 00:00:06]} d6 {[%clk 01:31:23]} {[%emt 00:00:02]} 3. d4
{[%clk 01:31:38]} {[%emt 00:00:14]} cxd4 {[%clk 01:31:49]} {[%emt 00:00:03]} 4.
Nxd4 {[%clk 01:32:01]} {[%emt 00:00:07]} Nf6 {[%clk 01:32:12]} {[%emt
00:00:08]} 5. Nc3 {[%clk 01:32:24]} {[%emt 00:00:08]} Nc6 {[%clk 01:32:16]}
{[%emt 00:00:26]} 6. f3 {[%emt 00:03:53]} a6 {[%clk 01:32:00]} {[%emt
00:00:22]} 7. Be3 {[%clk 01:27:21]} {[%emt 00:02:34]} g6 {[%clk 01:30:58]}
{[%emt 00:01:32]} 8. Qd2 {[%clk 01:26:41]} {[%emt 00:01:10]} Bg7 {[%clk
01:28:57]} {[%emt 00:02:30]} 9. Be2 {[%clk 01:24:59]} {[%emt 00:02:13]} O-O
{[%clk 01:26:08]} {[%emt 00:03:19]} 10. g4 {[%clk 01:23:09]} {[%emt 00:02:19]}
e5 {[%clk 01:24:55]} {[%emt 00:01:43]} 11. Nb3 {[%clk 01:22:00]} {[%emt
00:01:39]} Be6 {[%clk 01:23:26]} {[%emt 00:01:59]} 12. O-O-O {[%clk 01:16:18]}
{[%emt 00:06:13]} Ne8 {[%clk 01:21:59]} {[%emt 00:01:57]} 13. h4 {[%clk
01:11:09]} {[%emt 00:05:38]} f5 {[%clk 01:15:47]} {[%emt 00:06:42]} 14. gxf5
{[%clk 01:05:27]} {[%emt 00:06:12]} gxf5 {[%clk 01:15:18]} {[%emt 00:00:59]} 15.
Bh6 {[%clk 00:59:45]} {[%emt 00:06:12]} fxe4 {[%clk 01:11:49]} {[%emt
00:03:58]} 16. Bxg7 {[%clk 00:57:56]} {[%emt 00:02:20]} Nxg7 {[%clk 01:11:27]}
{[%emt 00:00:52]} 17. fxe4 {[%clk 00:55:42]} {[%emt 00:02:43]} Bxb3 {[%clk
01:07:25]} {[%emt 00:04:33]} 18. axb3 {[%clk 00:53:18]} {[%emt 00:02:55]} Nd4
{[%clk 01:06:15]} {[%emt 00:01:39]} 19. Bc4+ {[%clk 00:51:03]} {[%emt
00:02:46]} Kh8 {[%clk 01:05:54]} {[%emt 00:00:50]} 20. h5 {[%clk 00:43:44]}
{[%emt 00:07:49]} Rf4 {[%clk 01:00:47]} {[%emt 00:05:37]} 21. h6 {[%clk
00:38:50]} {[%emt 00:05:25]} Nge6 {[%clk 00:55:54]} {[%emt 00:05:23]} 22. Bxe6
{[%clk 00:37:23]} {[%emt 00:01:56]} Nxe6 {[%clk 00:54:19]} {[%emt 00:02:05]} 23.
Qxd6 {[%clk 00:33:59]} {[%emt 00:03:55]} Qxd6 {[%clk 00:54:01]} {[%emt
00:00:47]} 24. Rxd6 {[%clk 00:34:17]} {[%emt 00:00:12]} Nc5 {[%clk 00:52:58]}
{[%emt 00:01:34]} 25. Rd5 {[%clk 00:25:47]} {[%emt 00:09:00]} Nxe4 {[%clk
00:52:26]} {[%emt 00:01:01]} 26. Rxe5 {[%clk 00:22:41]} {[%emt 00:03:36]} Ng3
{[%clk 00:49:16]} {[%emt 00:03:40]} 27. Rhe1 {[%clk 00:21:14]} {[%emt
00:01:57]} Kg8 {[%clk 00:47:23]} {[%emt 00:02:24]} 28. Rg5+ {[%clk 00:20:52]}
{[%emt 00:00:52]} Kf8 {[%clk 00:45:50]} {[%emt 00:02:02]} 29. Rxg3 {[%clk
00:21:13]} {[%emt 00:00:10]} Rh4 {[%clk 00:45:40]} {[%emt 00:00:39]} 30. Rf1+
{[%clk 00:21:23]} {[%emt 00:00:20]} Ke7 {[%clk 00:45:36]} {[%emt 00:00:34]} 31.
Rg7+ {[%clk 00:21:42]} {[%emt 00:00:11]} 1-0

[Event "NJSK 2024 AmBm"]
[Site "Groningen, Netherlands"]
[Date "2024.04.28"]
[Round "2.9"]
[White "Yildirim, Azra"]
[Black "Kulikova, Polina"]
[Result "0-1"]
[TimeControl "90min/40moves + 30min + 30sec/move"]
[WhiteElo "1597"]
[BlackElo "1690"]

1. c4 {[%clk 01:30:56]} {[%emt 00:00:04]} e5 {[%clk 01:30:55]} {[%emt
00:00:06]} 2. Nc3 {[%clk 01:31:22]} {[%emt 00:00:05]} Bb4 {[%clk 01:31:22]}
{[%emt 00:00:02]} 3. e3 {[%clk 01:31:24]} {[%emt 00:00:28]} Bxc3 {[%clk
01:30:47]} {[%emt 00:01:05]} 4. bxc3 {[%clk 01:31:41]} {[%emt 00:00:13]} d6
{[%clk 01:30:14]} {[%emt 00:01:03]} 5. d4 {[%clk 01:26:03]} {[%emt 00:06:07]}
Ne7 {[%clk 01:17:08]} {[%emt 00:13:37]} 6. dxe5 {[%clk 01:18:04]} {[%emt
00:08:30]} dxe5 {[%clk 01:16:19]} {[%emt 00:01:18]} 7. Qxd8+ {[%clk 01:17:45]}
{[%emt 00:00:49]} Kxd8 {[%clk 01:16:46]} {[%emt 00:00:02]} 8. Nf3 {[%clk
01:13:13]} {[%emt 00:05:02]} f6 {[%clk 01:15:31]} {[%emt 00:01:47]} 9. Bd3
{[%clk 01:08:37]} {[%emt 00:05:05]} Bf5 {[%clk 01:04:02]} {[%emt 00:11:59]} 10.
Bxf5 {[%clk 01:01:37]} {[%emt 00:07:29]} Nxf5 {[%clk 01:03:56]} {[%emt
00:00:35]} 11. Ba3 {[%clk 01:00:35]} {[%emt 00:01:34]} Nd7 {[%clk 00:54:58]}
{[%emt 00:09:28]} 12. Rd1 {[%clk 00:47:20]} {[%emt 00:13:45]} Rc8 {[%clk
00:37:34]} {[%emt 00:17:53]} 13. O-O {[%clk 00:43:01]} {[%emt 00:04:49]} c5
{[%clk 00:36:58]} {[%emt 00:01:06]} 14. Nd2 {[%clk 00:39:08]} {[%emt 00:04:23]}
Nd6 {[%clk 00:24:42]} {[%emt 00:12:46]} 15. Nb3 {[%clk 00:37:15]} {[%emt
00:02:22]} Ke7 {[%clk 00:24:26]} {[%emt 00:00:47]} 16. Rd5 {[%clk 00:34:48]}
{[%emt 00:02:57]} b6 {[%clk 00:23:43]} {[%emt 00:01:14]} 17. Rfd1 {[%clk
00:33:32]} {[%emt 00:01:45]} Rc6 {[%clk 00:23:46]} {[%emt 00:00:27]} 18. Nd2
{[%clk 00:28:30]} {[%emt 00:05:32]} Rd8 {[%clk 00:22:56]} {[%emt 00:01:19]} 19.
f3 {[%clk 00:28:42]} {[%emt 00:00:19]} Nf8 {[%clk 00:17:13]} {[%emt 00:06:13]}
20. Ne4 {[%clk 00:26:00]} {[%emt 00:03:12]} Ne6 {[%clk 00:16:32]} {[%emt
00:01:10]} 21. Nxd6 {[%clk 00:24:52]} {[%emt 00:01:38]} Rcxd6 {[%clk 00:16:40]}
{[%emt 00:00:23]} 22. Rxd6 {[%clk 00:21:50]} {[%emt 00:03:32]} Rxd6 {[%clk
00:17:07]} {[%emt 00:00:03]} 23. Rxd6 {[%clk 00:22:10]} {[%emt 00:00:10]} Kxd6
{[%clk 00:17:32]} {[%emt 00:00:05]} 24. Kf2 {[%clk 00:22:05]} {[%emt 00:00:35]}
e4 {[%clk 00:16:08]} {[%emt 00:01:54]} 25. f4 {[%clk 00:19:21]} {[%emt
00:03:13]} Nc7 {[%clk 00:15:44]} {[%emt 00:00:54]} 26. Bb2 {[%clk 00:18:21]}
{[%emt 00:01:31]} Ke6 {[%clk 00:15:28]} {[%emt 00:00:46]} 27. g4 {[%clk
00:18:05]} {[%emt 00:00:44]} Ne8 {[%clk 00:15:35]} {[%emt 00:00:24]} 28. Ke2
{[%clk 00:15:31]} {[%emt 00:03:05]} Nd6 {[%clk 00:16:01]} {[%emt 00:00:04]} 29.
Bc1 {[%clk 00:15:41]} {[%emt 00:00:20]} Nxc4 {[%clk 00:15:30]} {[%emt
00:01:01]} 30. Kd1 {[%clk 00:15:58]} {[%emt 00:00:13]} g6 {[%clk 00:12:54]}
{[%emt 00:03:06]} 31. h4 {[%clk 00:14:50]} {[%emt 00:01:37]} g5 {[%clk
00:11:55]} {[%emt 00:01:29]} 32. f5+ {[%clk 00:13:51]} {[%emt 00:01:30]} Kf7
{[%clk 00:09:47]} {[%emt 00:02:39]} 33. hxg5 {[%clk 00:12:48]} {[%emt
00:01:33]} fxg5 {[%clk 00:09:58]} {[%emt 00:00:18]} 34. Ke2 {[%clk 00:13:07]}
{[%emt 00:00:11]} Ne5 {[%clk 00:10:14]} {[%emt 00:00:14]} 35. Kf2 {[%clk
00:12:43]} {[%emt 00:00:54]} Nxg4+ {[%clk 00:10:29]} {[%emt 00:00:15]} 36. Kg3
{[%clk 00:13:04]} {[%emt 00:00:09]} Ne5 {[%clk 00:10:30]} {[%emt 00:00:27]} 37.
Bb2 {[%clk 00:12:42]} {[%emt 00:00:54]} Kf6 {[%clk 00:10:33]} {[%emt 00:00:27]}
38. c4 {[%clk 00:12:57]} {[%emt 00:00:16]} h5 {[%clk 00:10:53]} {[%emt
00:00:08]} 39. Bxe5+ {[%clk 00:12:24]} {[%emt 00:01:04]} Kxe5 {[%clk 00:11:21]}
{[%emt 00:00:03]} 40. f6 {[%clk 00:12:29]} {[%emt 00:00:25]} Kxf6 {[%clk
00:11:48]} {[%emt 00:00:03]} 41. Kh3 {[%clk 00:12:35]} {[%emt 00:00:24]} Ke5
{[%clk 00:11:57]} {[%emt 00:00:20]} 42. Kg3 {[%clk 00:12:44]} {[%emt 00:00:22]}
Kf5 {[%clk 00:12:10]} {[%emt 00:00:16]} 43. Kh3 {[%clk 00:12:31]} {[%emt
00:00:43]} h4 {[%clk 00:12:30]} {[%emt 00:00:10]} 44. a3 {[%clk 00:12:09]}
{[%emt 00:00:53]} a6 {[%clk 00:12:47]} {[%emt 00:00:13]} 45. a4 {[%clk
00:12:10]} {[%emt 00:00:28]} a5 {[%clk 00:13:10]} {[%emt 00:00:08]} 46. Kh2
{[%clk 00:12:25]} {[%emt 00:00:14]} Kg4 {[%clk 00:13:38]} {[%emt 00:00:02]} 47.
Kg2 {[%clk 00:12:43]} {[%emt 00:00:12]} h3+ {[%clk 00:14:05]} {[%emt 00:00:03]}
48. Kf2 {[%clk 00:12:47]} {[%emt 00:00:26]} h2 {[%clk 00:13:57]} {[%emt
00:00:39]} 49. Kg2 {[%clk 00:12:59]} {[%emt 00:00:18]} h1=Q+ {[%emt 00:00:12]}
50. Kxh1 {[%emt 00:00:20]} Kf3 {[%clk 00:13:50]} {[%emt 00:00:03]} 51. Kh2
{[%clk 00:13:07]} {[%emt 00:00:23]} Kxe3 {[%clk 00:14:17]} {[%emt 00:00:03]} 52.
Kg2 {[%clk 00:13:20]} {[%emt 00:00:17]} Kd2 {[%clk 00:14:43]} {[%emt 00:00:05]}
53. Kg3 {[%clk 00:13:29]} {[%emt 00:00:20]} e3 {[%clk 00:15:04]} {[%emt
00:00:09]} 54. Kg4 {[%clk 00:13:56]} {[%emt 00:00:03]} e2 {[%clk 00:15:30]}
{[%emt 00:00:05]} 55. Kxg5 {[%clk 00:14:24]} {[%emt 00:00:02]} e1=Q {[%clk
00:15:44]} {[%emt 00:00:16]} 56. Kf5 {[%clk 00:14:48]} {[%emt 00:00:06]} Kd3
{[%clk 00:15:55]} {[%emt 00:00:17]} 57. Kf6 {[%clk 00:15:09]} {[%emt 00:00:10]}
Kd4 {[%clk 00:16:12]} {[%emt 00:00:13]} 58. Kf7 {[%clk 00:14:45]} {[%emt
00:00:55]} Ke5 {[%clk 00:16:16]} {[%emt 00:00:26]} 59. Ke7 {[%clk 00:14:58]}
{[%emt 00:00:17]} Qd2 {[%clk 00:16:28]} {[%emt 00:00:18]} 60. Kf7 {[%clk
00:15:17]} {[%emt 00:00:10]} Qd6 {[%clk 00:16:47]} {[%emt 00:00:11]} 61. Kg7
{[%clk 00:15:27]} {[%emt 00:00:20]} Qf6+ {[%clk 00:17:10]} {[%emt 00:00:07]} 62.
Kg8 {[%clk 00:15:19]} {[%emt 00:00:39]} Qe7 {[%clk 00:17:34]} {[%emt 00:00:06]}
63. Kh8 {[%clk 00:15:10]} {[%emt 00:00:39]} Kf6 {[%clk 00:17:47]} {[%emt
00:00:17]} 0-1

[Event "NJSK 2024 AmBm"]
[Site "Groningen, Netherlands"]
[Date "2024.04.29"]
[Round "3.1"]
[White "Tangarife Ramirez, Katja"]
[Black "Verheij, Dana"]
[Result "1/2-1/2"]
[TimeControl "90min/40moves + 30min + 30sec/move"]
[WhiteElo "1742"]
[BlackElo "1923"]

1. Nf3 {[%clk 01:30:58]} {[%emt 00:00:02]} f5 {[%clk 01:30:56]} {[%emt
00:00:06]} 2. g3 {[%clk 01:31:20]} {[%emt 00:00:07]} Nf6 {[%clk 01:31:16]}
{[%emt 00:00:10]} 3. Bg2 {[%clk 01:31:45]} {[%emt 00:00:05]} g6 {[%clk
01:31:43]} {[%emt 00:00:03]} 4. O-O {[%clk 01:32:07]} {[%emt 00:00:08]} Bg7
{[%clk 01:32:05]} {[%emt 00:00:09]} 5. d3 {[%clk 01:32:30]} {[%emt 00:00:06]}
O-O {[%clk 01:32:20]} {[%emt 00:00:15]} 6. c4 {[%clk 01:31:25]} {[%emt
00:01:35]} d6 {[%clk 01:31:36]} {[%emt 00:01:14]} 7. Nc3 {[%clk 01:31:33]}
{[%emt 00:00:22]} Nc6 {[%clk 01:31:41]} {[%emt 00:00:25]} 8. Rb1 {[%clk
01:23:51]} {[%emt 00:08:12]} a5 {[%clk 01:28:55]} {[%emt 00:03:16]} 9. e4
{[%clk 01:20:44]} {[%emt 00:03:37]} e5 {[%clk 01:20:12]} {[%emt 00:09:13]} 10.
exf5 {[%clk 01:17:44]} {[%emt 00:03:29]} gxf5 {[%clk 01:20:25]} {[%emt
00:00:18]} 11. Bg5 {[%clk 01:17:38]} {[%emt 00:00:36]} Ne7 {[%clk 01:15:25]}
{[%emt 00:05:30]} 12. Qd2 {[%clk 01:10:32]} {[%emt 00:07:36]} Kh8 {[%clk
01:12:38]} {[%emt 00:03:17]} 13. Nh4 {[%clk 01:06:49]} {[%emt 00:04:13]} f4
{[%clk 01:06:11]} {[%emt 00:06:57]} 14. Ne2 {[%clk 00:55:42]} {[%emt 00:11:37]}
h6 {[%clk 01:00:05]} {[%emt 00:06:35]} 15. Bxf6 {[%clk 00:56:03]} {[%emt
00:00:09]} Bxf6 {[%clk 01:00:17]} {[%emt 00:00:19]} 16. Nf3 {[%clk 00:55:43]}
{[%emt 00:00:50]} Rg8 {[%clk 00:55:12]} {[%emt 00:05:34]} 17. d4 {[%clk
00:49:49]} {[%emt 00:06:24]} Qe8 {[%clk 00:52:10]} {[%emt 00:03:32]} 18. Nc3
{[%clk 00:46:38]} {[%emt 00:03:42]} Qg6 {[%clk 00:48:21]} {[%emt 00:04:19]} 19.
dxe5 {[%clk 00:44:42]} {[%emt 00:02:26]} dxe5 {[%clk 00:48:12]} {[%emt
00:00:39]} 20. Rbe1 {[%clk 00:43:43]} {[%emt 00:01:29]} Nc6 {[%clk 00:46:13]}
{[%emt 00:02:29]} 21. Nd5 {[%clk 00:36:00]} {[%emt 00:08:12]} Bf5 {[%clk
00:45:12]} {[%emt 00:01:31]} 22. Nxf6 {[%clk 00:32:27]} {[%emt 00:04:04]} Qxf6
{[%clk 00:45:41]} {[%emt 00:00:02]} 23. Qc3 {[%clk 00:30:23]} {[%emt 00:02:34]}
Rae8 {[%clk 00:42:30]} {[%emt 00:03:40]} 24. Re2 {[%clk 00:24:19]} {[%emt
00:06:34]} Bg4 {[%clk 00:17:17]} {[%emt 00:25:43]} 25. Ree1 {[%clk 00:17:58]}
{[%emt 00:06:51]} Qg7 {[%clk 00:15:15]} {[%emt 00:02:32]} 26. Nh4 {[%clk
00:12:40]} {[%emt 00:05:48]} Nd4 {[%clk 00:14:01]} {[%emt 00:01:44]} 27. Kh1
{[%clk 00:12:32]} {[%emt 00:00:37]} Be2 {[%clk 00:08:32]} {[%emt 00:06:00]} 28.
Rg1 {[%clk 00:11:58]} {[%emt 00:01:04]} Qf6 {[%clk 00:06:26]} {[%emt 00:02:36]}
29. Bd5 {[%clk 00:07:07]} {[%emt 00:05:21]} c6 {[%clk 00:04:25]} {[%emt
00:02:32]} 30. Bxg8 {[%clk 00:04:21]} {[%emt 00:03:15]} Rxg8 {[%clk 00:04:49]}
{[%emt 00:00:05]} 31. Ng2 {[%clk 00:01:29]} {[%emt 00:03:22]} Bf3 {[%clk
00:02:38]} {[%emt 00:02:42]} 32. Qd3 {[%clk 00:01:38]} {[%emt 00:00:21]} e4
{[%clk 00:01:44]} {[%emt 00:01:24]} 33. Rxe4 {[%clk 00:01:49]} {[%emt
00:00:19]} Bxe4 {[%clk 00:01:50]} {[%emt 00:00:24]} 34. Qxe4 {[%clk 00:02:14]}
{[%emt 00:00:05]} fxg3 {[%clk 00:01:37]} {[%emt 00:00:43]} 35. fxg3 {[%clk
00:02:19]} {[%emt 00:00:24]} c5 {[%clk 00:00:51]} {[%emt 00:01:17]} 36. Nf4
{[%clk 00:01:49]} {[%emt 00:00:59]} b6 {[%clk 00:00:55]} {[%emt 00:00:27]} 37.
Rf1 {[%clk 00:01:05]} {[%emt 00:01:14]} Qg5 {[%clk 00:00:55]} {[%emt 00:00:30]}
38. Qd5 {[%clk 00:00:58]} {[%emt 00:00:37]} Qxd5+ {[%clk 00:00:39]} {[%emt
00:00:46]} 39. Nxd5 {[%clk 00:01:00]} {[%emt 00:00:29]} Kg7 {[%clk 00:00:42]}
{[%emt 00:00:26]} 40. Re1 {[%clk 00:00:57]} {[%emt 00:00:32]} Rf8 {[%clk
00:00:44]} {[%emt 00:00:29]} 41. Re7+ {[%clk 00:29:19]} {[%emt 00:02:08]} Kg6
{[%clk 00:29:40]} {[%emt 00:01:35]} 42. Nf4+ {[%clk 00:29:13]} {[%emt
00:00:35]} Kf5 {[%clk 00:21:44]} {[%emt 00:08:27]} 43. Kg2 {[%clk 00:27:51]}
{[%emt 00:01:52]} Rd8 {[%clk 00:20:17]} {[%emt 00:01:56]} 44. Nd5 {[%clk
00:24:49]} {[%emt 00:03:33]} b5 {[%clk 00:19:16]} {[%emt 00:01:31]} 45. Ne3+
{[%clk 00:20:20]} {[%emt 00:04:59]} Kf6 {[%clk 00:18:19]} {[%emt 00:01:26]} 46.
Re4 {[%clk 00:17:20]} {[%emt 00:03:30]} Ne6 {[%clk 00:15:33]} {[%emt 00:03:17]}
47. Nf1 {[%clk 00:14:44]} {[%emt 00:03:06]} 1/2-1/2

[Event "NJSK 2024 AmBm"]
[Site "Groningen, Netherlands"]
[Date "2024.04.29"]
[Round "3.2"]
[White "Westerhof, Fleur"]
[Black "Oostinga, Elisa"]
[Result "1-0"]
[TimeControl "90min/40moves + 30min + 30sec/move"]
[WhiteElo "1916"]
[BlackElo "1713"]

1. e4 {[%clk 01:30:57]} {[%emt 00:00:02]} c6 {[%clk 01:30:49]} {[%emt
00:00:11]} 2. d4 {[%clk 01:31:21]} {[%emt 00:00:06]} d5 {[%clk 01:31:05]}
{[%emt 00:00:14]} 3. Nc3 {[%clk 01:31:43]} {[%emt 00:00:08]} dxe4 {[%clk
01:31:11]} {[%emt 00:00:23]} 4. Nxe4 {[%clk 01:32:05]} {[%emt 00:00:09]} Bf5
{[%clk 01:31:08]} {[%emt 00:00:32]} 5. Ng3 {[%clk 01:31:51]} {[%emt 00:00:44]}
Bg6 {[%clk 01:30:56]} {[%emt 00:00:42]} 6. Nf3 {[%clk 01:31:44]} {[%emt
00:00:39]} Nd7 {[%clk 01:30:38]} {[%emt 00:00:47]} 7. h4 {[%clk 01:31:27]}
{[%emt 00:00:47]} h6 {[%clk 01:30:39]} {[%emt 00:00:29]} 8. h5 {[%clk
01:31:17]} {[%emt 00:00:40]} Bh7 {[%clk 01:30:43]} {[%emt 00:00:26]} 9. Bd3
{[%clk 01:31:23]} {[%emt 00:00:24]} Bxd3 {[%clk 01:30:23]} {[%emt 00:00:50]} 10.
Qxd3 {[%clk 01:31:44]} {[%emt 00:00:09]} e6 {[%clk 01:27:27]} {[%emt 00:03:26]}
11. Bf4 {[%clk 01:30:29]} {[%emt 00:01:45]} Ngf6 {[%clk 01:25:11]} {[%emt
00:02:45]} 12. O-O-O {[%clk 01:22:43]} {[%emt 00:08:17]} Be7 {[%clk 01:19:08]}
{[%emt 00:06:32]} 13. Kb1 {[%clk 01:17:20]} {[%emt 00:05:54]} O-O {[%clk
00:48:34]} {[%emt 00:31:03]} 14. Ne4 {[%clk 01:10:08]} {[%emt 00:07:43]} Nxe4
{[%clk 00:36:33]} {[%emt 00:12:31]} 15. Qxe4 {[%clk 01:09:08]} {[%emt
00:01:30]} Nf6 {[%clk 00:35:04]} {[%emt 00:01:58]} 16. Qe2 {[%clk 01:05:15]}
{[%emt 00:04:23]} Qd5 {[%clk 00:28:36]} {[%emt 00:06:58]} 17. Ne5 {[%clk
00:50:30]} {[%emt 00:15:15]} Rad8 {[%clk 00:20:27]} {[%emt 00:08:39]} 18. f3
{[%clk 00:45:40]} {[%emt 00:05:21]} Qa5 {[%clk 00:11:28]} {[%emt 00:09:27]} 19.
g4 {[%clk 00:38:38]} {[%emt 00:07:33]} Nd5 {[%clk 00:08:06]} {[%emt 00:03:52]}
20. Bd2 {[%clk 00:30:09]} {[%emt 00:08:59]} Qb6 {[%clk 00:07:38]} {[%emt
00:00:59]} 21. c4 {[%clk 00:26:20]} {[%emt 00:04:18]} Nc7 {[%clk 00:05:29]}
{[%emt 00:02:39]} 22. Be3 {[%clk 00:23:11]} {[%emt 00:03:39]} c5 {[%clk
00:04:42]} {[%emt 00:01:17]} 23. dxc5 {[%clk 00:22:57]} {[%emt 00:00:45]} Bxc5
{[%clk 00:04:54]} {[%emt 00:00:18]} 24. Bxc5 {[%clk 00:22:58]} {[%emt
00:00:29]} Qxc5 {[%clk 00:05:19]} {[%emt 00:00:05]} 25. Nd7 {[%clk 00:22:59]}
{[%emt 00:00:28]} Qc6 {[%clk 00:04:06]} {[%emt 00:01:43]} 26. Nxf8 {[%clk
00:23:07]} {[%emt 00:00:22]} Rxf8 {[%clk 00:04:26]} {[%emt 00:00:10]} 27. Rd2
{[%clk 00:22:42]} {[%emt 00:00:56]} b5 {[%clk 00:04:21]} {[%emt 00:00:35]} 28.
Rc1 {[%clk 00:21:14]} {[%emt 00:01:57]} Qb6 {[%clk 00:04:13]} {[%emt 00:00:38]}
29. c5 {[%clk 00:19:44]} {[%emt 00:02:00]} Qb7 {[%clk 00:04:37]} {[%emt
00:00:07]} 30. Rd7 {[%clk 00:18:16]} {[%emt 00:01:57]} Qc6 {[%clk 00:04:25]}
{[%emt 00:00:42]} 31. Rd6 {[%clk 00:17:57]} {[%emt 00:00:50]} Qb7 {[%clk
00:04:45]} {[%emt 00:00:09]} 32. c6 {[%clk 00:17:44]} {[%emt 00:00:42]} Qb6
{[%clk 00:05:10]} {[%emt 00:00:06]} 33. Rd7 {[%clk 00:16:16]} {[%emt 00:01:57]}
Rc8 {[%clk 00:03:44]} {[%emt 00:01:57]} 34. Qe5 {[%clk 00:15:02]} {[%emt
00:01:44]} a5 {[%clk 00:03:15]} {[%emt 00:00:59]} 35. Qf4 {[%clk 00:13:49]}
{[%emt 00:01:42]} f6 {[%clk 00:03:27]} {[%emt 00:00:19]} 36. Qd6 {[%clk
00:13:40]} {[%emt 00:00:38]} b4 {[%clk 00:02:21]} {[%emt 00:01:37]} 37. Qe7
{[%clk 00:13:13]} {[%emt 00:00:57]} Ne8 {[%clk 00:02:31]} {[%emt 00:00:21]} 38.
c7 {[%clk 00:11:47]} {[%emt 00:01:56]} 1-0

[Event "NJSK 2024 AmBm"]
[Site "Groningen, Netherlands"]
[Date "2024.04.29"]
[Round "3.3"]
[White "Gergin, Isafara"]
[Black "Damen, Josephine"]
[Result "1-0"]
[TimeControl "90min/40moves + 30min + 30sec/move"]
[WhiteElo "1888"]
[BlackElo "1890"]

1. e4 {[%clk 01:30:57]} {[%emt 00:00:02]} e5 {[%clk 01:30:55]} {[%emt
00:00:06]} 2. Nf3 {[%clk 01:31:22]} {[%emt 00:00:05]} Nc6 {[%clk 01:31:20]}
{[%emt 00:00:05]} 3. d4 {[%clk 01:31:47]} {[%emt 00:00:05]} exd4 {[%clk
01:31:44]} {[%emt 00:00:06]} 4. Nxd4 {[%clk 01:32:11]} {[%emt 00:00:05]} Bc5
{[%clk 01:32:08]} {[%emt 00:00:07]} 5. Be3 {[%clk 01:32:35]} {[%emt 00:00:06]}
Qf6 {[%clk 01:32:26]} {[%emt 00:00:12]} 6. c3 {[%clk 01:32:55]} {[%emt
00:00:10]} Nge7 {[%clk 01:32:42]} {[%emt 00:00:14]} 7. Bc4 {[%clk 01:33:14]}
{[%emt 00:00:11]} Ne5 {[%clk 01:32:56]} {[%emt 00:00:15]} 8. Be2 {[%clk
01:33:39]} {[%emt 00:00:06]} Qg6 {[%clk 01:33:13]} {[%emt 00:00:14]} 9. O-O
{[%clk 01:33:48]} {[%emt 00:00:20]} d6 {[%clk 01:33:32]} {[%emt 00:00:11]} 10.
f3 {[%clk 01:33:52]} {[%emt 00:00:26]} O-O {[%clk 01:33:34]} {[%emt 00:00:28]}
11. Nd2 {[%clk 01:33:50]} {[%emt 00:00:32]} d5 {[%clk 01:33:18]} {[%emt
00:00:46]} 12. a4 {[%clk 01:34:04]} {[%emt 00:00:16]} a6 {[%clk 01:23:06]}
{[%emt 00:10:42]} 13. Kh1 {[%clk 01:33:57]} {[%emt 00:00:37]} dxe4 {[%clk
01:19:32]} {[%emt 00:04:04]} 14. Nxe4 {[%clk 01:34:09]} {[%emt 00:00:18]} Ba7
{[%clk 01:15:29]} {[%emt 00:04:33]} 15. Bf4 {[%emt 00:09:55]} Nd5 {[%clk
01:09:14]} 16. Bg3 {[%clk 01:10:57]} {[%emt 00:21:02]} Ne3 {[%clk 00:32:02]}
{[%emt 00:37:41]} 17. Qc1 {[%clk 01:10:01]} {[%emt 00:01:26]} Nxf1 {[%clk
00:30:25]} {[%emt 00:02:08]} 18. Bxe5 {[%clk 01:08:35]} {[%emt 00:01:55]} Qh5
{[%clk 00:20:09]} {[%emt 00:10:46]} 19. Bxc7 {[%clk 00:57:46]} {[%emt
00:11:20]} Bb6 {[%clk 00:18:26]} {[%emt 00:02:14]} 20. Bf4 {[%clk 00:51:18]}
{[%emt 00:06:57]} Nxh2 {[%clk 00:15:12]} {[%emt 00:03:44]} 21. Bxh2 {[%clk
00:51:02]} {[%emt 00:00:45]} Bc7 {[%clk 00:13:56]} {[%emt 00:01:47]} 22. f4
{[%clk 00:48:17]} {[%emt 00:03:15]} Qh6 {[%clk 00:14:01]} {[%emt 00:00:24]} 23.
Qe3 {[%clk 00:41:21]} {[%emt 00:07:26]} Bd7 {[%clk 00:11:24]} {[%emt 00:03:08]}
24. Nc5 {[%clk 00:38:16]} {[%emt 00:03:34]} Rae8 {[%clk 00:09:59]} {[%emt
00:01:55]} 25. Qf3 {[%clk 00:37:40]} {[%emt 00:01:07]} Bc8 {[%clk 00:08:34]}
{[%emt 00:01:55]} 26. Rf1 {[%clk 00:35:56]} {[%emt 00:02:13]} Re7 {[%clk
00:06:39]} {[%emt 00:02:26]} 27. Qh5 {[%clk 00:26:32]} {[%emt 00:09:53]} Qf6
{[%clk 00:02:22]} {[%emt 00:04:47]} 28. Bd3 {[%clk 00:24:17]} {[%emt 00:02:45]}
g6 {[%clk 00:02:28]} {[%emt 00:00:24]} 29. Qf3 {[%clk 00:22:28]} {[%emt
00:02:19]} Qh4 {[%clk 00:01:16]} {[%emt 00:01:43]} 30. Ne4 {[%clk 00:20:37]}
{[%emt 00:02:21]} Rfe8 {[%clk 00:01:07]} {[%emt 00:00:39]} 31. g3 {[%clk
00:19:41]} {[%emt 00:01:26]} Bg4 {[%clk 00:00:39]} {[%emt 00:00:58]} 32. Qxg4
{[%clk 00:15:35]} {[%emt 00:04:36]} Qxg4 {[%clk 00:00:41]} {[%emt 00:00:28]} 33.
Nf6+ {[%clk 00:15:59]} {[%emt 00:00:06]} Kg7 {[%clk 00:01:07]} {[%emt
00:00:05]} 34. Nxg4 {[%clk 00:16:23]} {[%emt 00:00:05]} 1-0